bitfinex/quotes_ETHUSD_20241106
["timestamp","ask_amount","ask_price","bid_price","bid_amount"]
[1730902463459,0.07782003,2622.5,2622.1,3.65914872]
[1730902463772,0.07782003,2622.5,2622.2,0.03918945]
[1730902464061,3.81341,2622.4,2622.2,0.03918945]
[1730902464247,3.89126003,2622.3,2621.8,3.81407]
[1730902464450,3.89126003,2622.3,2621.8,7.62816]
[1730902464758,0.07782003,2622.3,2621.9,3.81401]
[1730902466067,0.07782003,2622.3,2622.0,3.81387]
[1730902466265,0.4606,2622.4,2622.0,3.81387]
[1730902466266,0.07782003,2622.5,2622.2,3.81357]
[1730902466761,0.07782003,2622.5,2622.1,0.804]
[1730902466960,0.1274886,2622.6,2622.4,3.8133]
[1730902467171,0.1274886,2622.6,2622.2,0.07626427]
[1730902467326,0.1274886,2622.6,2622.3,3.81344]
[1730902467666,0.1274886,2622.6,2622.5,3.81315]
[1730902468428,0.1274886,2622.6,2622.5,4.57475]
[1730902469559,0.1274886,2622.6,2622.5,4.65100964]
[1730902470034,0.1274886,2622.6,2622.5,4.57475]
[1730902470233,0.1274886,2622.6,2622.5,5.413555]
[1730902472377,0.1274886,2622.6,2622.5,5.48981029]
[1730902477971,0.1274886,2622.6,2622.5,5.413555]
[1730902478144,0.1274886,2622.6,2622.5,4.57475]
[1730902478350,0.1274886,2622.6,2622.5,3.81315]
[1730902478552,3.9406086,2622.6,2621.9,3.81391]
[1730902478749,0.53842003,2622.5,2622.1,3.81363]
[1730902479754,0.4606,2622.5,2622.3,3.81342]
[1730902479962,0.4606,2622.5,2622.1,3.81363]
[1730902480174,0.4606,2622.5,2622.2,3.81357]
[1730902480377,0.4606,2622.5,2622.1,3.81373]
[1730902481056,0.07782003,2622.4,2622.0,3.81384]
[1730902481348,3.89118003,2622.4,2622.0,3.81384]
[1730902483409,3.89118003,2622.4,2621.9,3.81402]
[1730902484607,3.81345,2622.3,2621.9,3.81402]
[1730902484909,3.89141003,2622.2,2621.8,4.63452]
[1730902485097,3.89141003,2622.2,2621.8,3.81412]
[1730902486307,3.89141003,2622.2,2621.6,0.7561]
[1730902486507,4.27444,2622.1,2621.6,3.81444]
[1730902486663,3.89176003,2622.0,2621.6,3.81444]
[1730902487576,0.07782003,2622.0,2621.6,3.81439]
[1730902487901,0.07782003,2622.0,2621.7,3.81425]
[1730902488273,0.07782003,2622.0,2621.6,7.62877]
[1730902488675,0.53842003,2622.1,2621.7,3.8142]
[1730902488990,0.53842003,2622.1,2621.8,3.81412]
[1730902489400,0.53842003,2622.1,2621.8,0.762832]
[1730902489401,0.07782003,2622.1,2621.8,0.762832]
[1730902489571,0.1274886,2622.6,2622.0,3.81388]
[1730902489572,3.8133,2622.4,2622.0,3.81388]
[1730902489909,0.07782003,2622.3,2622.0,3.81388]
[1730902490068,0.07782003,2622.5,2622.1,3.81364]
[1730902490404,0.07782003,2622.5,2622.2,3.81355]
[1730902491123,3.9405986,2622.6,2622.4,3.81328]
[1730902491124,0.1274886,2622.6,2622.4,3.81328]
[1730902491324,0.1274886,2622.6,2622.5,4.57465]
[1730902491532,0.1274886,2622.6,2622.5,4.65090981]
[1730902492034,0.1274886,2622.6,2622.5,4.57465]
[1730902492245,0.1274886,2622.6,2622.4,4.194608]
[1730902492246,0.1274886,2622.6,2622.4,0.381328]
[1730902492407,0.1274886,2622.6,2622.4,4.194608]
[1730902493024,0.1274886,2622.6,2622.3,3.81343]
[1730902493225,0.1274886,2622.6,2621.4,4.39056974]
[1730902493226,0.1274886,2622.6,2622.1,3.81373]
[1730902493388,3.9406086,2622.6,2622.1,3.81373]
[1730902493592,0.07782003,2622.5,2622.1,3.81373]
[1730902495229,3.89099003,2622.5,2622.0,4.59746]
[1730902495430,0.07782003,2622.5,2622.1,3.8137]
[1730902495728,3.89104003,2622.5,2622.0,3.81386]
[1730902496088,3.81346,2622.3,2621.8,4.56495]
[1730902496408,0.4606,2622.2,2621.8,3.81405]
[1730902496751,0.4606,2622.2,2621.9,3.81401]
[1730902496926,0.4606,2622.2,2621.8,3.81405]
[1730902497226,4.27419,2622.2,2621.8,3.81405]
[1730902497431,0.07782003,2622.1,2621.8,3.81405]
[1730902497596,3.89156003,2622.1,2621.6,3.81435]
[1730902497800,3.89156003,2622.1,2621.7,3.81431]
[1730902498220,0.07782003,2622.1,2621.7,3.81431]
[1730902498548,3.89157003,2622.1,2621.7,3.81431]
[1730902499243,3.81417,2621.8,2621.2,3.81491]
[1730902499441,3.81447,2621.6,2621.1,3.81518]
[1730902499765,0.53842003,2621.5,2621.0,7.63047]
[1730902500256,0.53842003,2621.5,2621.0,4.66676008]
[1730902500416,4.35307003,2621.5,2621.0,4.66676008]
[1730902501309,0.53842003,2621.5,2621.0,3.81521]
[1730902501543,3.81478,2621.4,2621.0,3.81521]
[1730902502048,0.07782003,2621.3,2620.9,0.05723083]
[1730902502205,3.89280003,2621.3,2620.9,0.05723083]
[1730902502830,3.81512,2621.2,2620.9,0.05723083]
[1730902503031,3.89305003,2621.1,2620.9,0.05723083]
[1730902503233,4.27593,2621.0,2620.9,0.05723083]
[1730902503616,4.35375003,2621.0,2620.9,0.05723083]
[1730902504041,3.8157,2620.8,2620.3,3.81633]
[1730902504370,0.4606,2621.0,2620.4,0.8686199]
[1730902504514,0.07782003,2621.3,2620.7,3.81566]
[1730902504848,3.82398,2622.0,2620.7,3.81566]
[1730902504849,4.27492,2621.7,2621.2,3.81504]
[1730902505050,4.35274003,2621.7,2621.1,7.63021]
[1730902505567,0.4606,2621.9,2621.2,0.07629655]
[1730902505764,3.81368,2622.2,2621.7,3.8142]
[1730902505765,0.4606,2622.2,2621.7,3.8142]
[1730902505916,3.81382,2622.1,2621.6,4.63632]
[1730902506266,3.89164003,2622.1,2621.6,4.63632]
[1730902506920,0.07782003,2622.1,2621.7,3.81431]
[1730902507216,3.89157003,2622.1,2621.6,4.63636]
[1730902507421,3.81391,2622.0,2621.4,8.42126]
[1730902507622,3.81391,2622.0,2621.5,0.842126]
[1730902507623,3.89185003,2621.9,2621.5,0.842126]
[1730902507842,3.81391,2622.0,2621.4,4.60661]
[1730902508157,0.07782003,2621.9,2621.4,4.60661]
[1730902509151,0.4606,2622.2,2621.8,3.81408]
[1730902509354,4.35202003,2622.2,2621.7,3.81431]
[1730902509564,4.35202003,2622.2,2621.7,4.58480576]
[1730902509933,4.35202003,2622.2,2621.8,3.81416]
[1730902510122,0.53842003,2622.2,2621.8,7.62832]
[1730902510323,0.07782003,2622.3,2621.9,3.81401]
[1730902510625,4.27397,2622.4,2622.0,3.81387]
[1730902511370,0.07782003,2622.3,2621.9,3.81402]
[1730902511523,0.07782003,2622.3,2621.7,4.58480576]
[1730902511725,0.07782003,2622.3,2621.7,0.77049576]
[1730902512056,3.89133003,2622.3,2621.8,3.81409]
[1730902512463,3.89133003,2622.3,2621.4,0.792]
[1730902512464,3.81362,2622.2,2621.7,3.81423]
[1730902512751,3.89127003,2622.3,2621.8,3.81416]
[1730902513070,4.27403,2622.4,2622.0,3.81387]
[1730902513280,0.4606,2622.4,2622.0,3.81387]
[1730902513768,0.4606,2622.4,2622.0,3.8138]
[1730902513975,0.4606,2622.4,2622.1,3.81366]
[1730902514132,3.1274886,2622.6,2622.1,3.81366]
[1730902514338,0.07782003,2622.5,2622.1,3.81373]
[1730902514539,0.07782003,2622.5,2622.2,3.81357]
[1730902515862,0.07782003,2622.5,2622.1,3.81372]
[1730902518482,3.81337,2622.4,2621.9,4.62755]
[1730902518636,3.81337,2622.4,2621.9,8.4415]
[1730902518838,1.12919486,2622.5,2621.9,4.62755]
[1730902519036,0.07782003,2622.5,2622.1,3.81366]
[1730902519971,0.07782003,2622.5,2621.9,4.62754]
[1730902519972,3.89104003,2622.5,2622.0,3.81386]
[1730902520157,7.70433003,2622.5,2622.0,3.81386]
[1730902520364,3.89104003,2622.5,2622.1,3.81371]
[1730902521380,0.07782003,2622.5,2622.1,3.81369]
[1730902522854,0.07782003,2622.5,2621.8,0.8046]
[1730902522855,1.20701889,2622.5,2621.8,0.8046]
[1730902523181,3.81368,2622.2,2621.7,3.8142]
[1730902523480,3.81389,2622.0,2621.6,0.8189]
[1730902523881,0.07782003,2622.1,2621.6,4.63335]
[1730902524085,3.81359,2622.2,2621.7,3.8143]
[1730902524242,0.07782003,2622.2,2622.0,3.8138]
[1730902524442,0.20530863,2622.6,2622.2,3.81357]
[1730902524671,0.20530863,2622.6,2622.4,3.81322]
[1730902524672,0.1274886,2622.6,2622.4,3.81322]
[1730902524979,0.1274886,2622.6,2622.4,3.8132]
[1730902525181,0.1274886,2622.6,2622.5,3.81315]
[1730902526262,0.1274886,2622.6,2622.5,4.63685]
[1730902529999,0.1274886,2622.6,2622.5,0.8237]
[1730902530557,0.1274886,2622.6,2622.3,3.81341]
[1730902530789,0.1274886,2622.6,2622.2,4.621]
[1730902530790,0.1274886,2622.6,2622.4,3.8133]
[1730902530967,0.1274886,2622.6,2622.5,3.81315]
[1730902531296,0.1274886,2622.6,2622.3,3.81344]
[1730902531679,0.1274886,2622.6,2622.2,4.62098]
[1730902531883,0.1274886,2622.6,2622.5,3.81315]
[1730902533066,0.1274886,2622.6,2622.5,4.71250571]
[1730902533255,0.1274886,2622.6,2622.5,5.18625]
[1730902533453,0.1274886,2622.6,2622.5,8.18625]
[1730902533683,0.1274886,2622.6,2622.5,7.63625]
[1730902533852,0.1274886,2622.6,2622.5,8.781192]
[1730902535291,0.1274886,2622.6,2622.5,5.781192]
[1730902535472,0.1274886,2622.6,2622.5,3.81315]
[1730902535669,0.1274886,2622.6,2622.4,3.81317]
[1730902535865,0.1274886,2622.6,2622.5,3.81315]
[1730902536082,0.1274886,2622.6,2622.4,7.62638]
[1730902536284,0.1274886,2622.6,2622.4,3.75735622]
[1730902537307,0.1274886,2622.6,2622.1,3.81373]
[1730902537596,0.53842003,2622.5,2621.8,3.81405]
[1730902537764,4.35159003,2622.5,2621.8,3.81405]
[1730902537966,3.8133,2622.4,2621.8,7.62814]
[1730902538262,0.07782003,2622.3,2621.8,7.62814]
[1730902538463,0.07782003,2622.3,2621.9,3.81393]
[1730902538662,0.07782003,2622.3,2621.8,3.89032397]
[1730902538663,0.07782003,2622.3,2621.8,0.07627397]
[1730902538899,0.4606,2622.5,2621.8,0.07627397]
[1730902539060,0.1274886,2622.6,2622.4,3.8133]
[1730902539397,0.1274886,2622.6,2622.2,3.81358]
[1730902539603,0.20530863,2622.6,2622.3,3.81343]
[1730902539798,0.20530863,2622.6,2622.2,3.81358]
[1730902539799,0.1274886,2622.6,2622.4,3.81328]
[1730902540294,0.1274886,2622.6,2622.0,3.81376]
[1730902540507,3.81351,2622.3,2621.8,3.81408]
[1730902540801,0.07782003,2622.2,2621.8,3.81408]
[1730902541197,4.27448,2622.0,2621.6,3.81437]
[1730902541404,3.89197003,2621.9,2621.4,3.81465]
[1730902541605,0.4606,2622.0,2621.7,3.8143]
[1730902541764,0.4606,2622.0,2621.7,3.81428]
[1730902543065,0.4606,2622.0,2621.4,3.81464]
[1730902543269,0.4606,2622.0,2621.2,0.51326697]
[1730902544169,0.4606,2622.0,2621.7,3.81426]
[1730902544975,0.07782003,2622.1,2621.8,3.81408]
[1730902545181,0.07782003,2622.1,2622.0,3.81388]
[1730902545381,0.4606,2622.2,2621.9,3.81402]
[1730902545714,0.53842003,2622.2,2621.9,3.81402]
[1730902546487,0.4606,2622.2,2622.0,3.81387]
[1730902547066,0.4606,2622.2,2621.9,3.81402]
[1730902547398,0.4606,2622.2,2621.7,4.63302]
[1730902547590,0.4606,2622.2,2621.8,3.81417]
[1730902549101,0.07782003,2622.1,2621.6,3.81441]
[1730902549305,3.81411,2621.9,2621.3,0.8254]
[1730902549606,3.89202003,2621.8,2621.3,3.81477]
[1730902550268,0.07782003,2621.8,2621.4,3.81467]
[1730902552220,3.81435,2621.7,2621.1,3.81509]
[1730902552516,0.53842003,2621.6,2621.2,3.815]
[1730902553305,0.53842003,2621.6,2621.3,3.81488]
[1730902553996,0.53842003,2621.6,2621.4,3.81475]
[1730902554411,0.4606,2621.6,2621.4,3.81475]
[1730902554722,0.4606,2621.6,2621.5,3.8146]
[1730902554884,0.4606,2621.6,2621.3,3.81488]
[1730902555090,0.4606,2621.6,2621.4,3.81475]
[1730902556123,0.4606,2621.6,2621.5,3.8146]
[1730902556890,0.4606,2621.6,2621.4,3.81474]
[1730902557308,0.4606,2621.6,2621.4,7.62942]
[1730902557603,0.4606,2621.6,2621.5,3.8146]
[1730902561221,0.4606,2621.8,2621.5,3.8146]
[1730902561612,0.4606,2622.4,2622.0,3.81388]
[1730902561813,0.4606,2622.4,2621.8,0.8268]
[1730902562116,0.4606,2622.4,2622.3,3.81344]
[1730902562311,0.4606,2622.4,2622.2,3.81359]
[1730902562537,0.20530863,2622.6,2622.2,0.381359]
[1730902562853,0.1274886,2622.6,2622.4,3.81318]
[1730902563057,0.1274886,2622.6,2622.1,0.0762665]
[1730902563257,3.9405686,2622.6,2622.1,3.81373]
[1730902563545,3.8133,2622.4,2621.9,3.81399]
[1730902563767,4.35197003,2622.3,2621.8,3.81407]
[1730902564046,4.630117,2622.2,2621.5,0.7861]
[1730902564246,0.4606,2622.0,2621.6,7.62884]
[1730902564412,0.07782003,2621.9,2621.6,7.62884]
[1730902564610,0.07782003,2621.9,2621.6,3.81438]
[1730902565545,0.07782003,2621.9,2621.4,3.81466]
[1730902565752,0.07782003,2621.9,2621.5,3.81448]
[1730902566455,3.89187003,2621.9,2621.4,3.81465]
[1730902566759,0.4606,2621.8,2621.3,3.81489]
[1730902566958,0.07782003,2621.7,2621.3,3.81489]
[1730902567140,4.27479,2621.8,2621.5,3.8146]
[1730902567141,0.53842003,2621.8,2621.5,3.8146]
[1730902567328,0.53842003,2621.8,2621.4,3.81474]
[1730902567531,0.4606,2621.8,2621.4,3.81474]
[1730902567860,0.4606,2622.1,2621.5,0.8328]
[1730902568054,0.4606,2622.1,2621.8,3.81409]
[1730902568255,0.4606,2622.4,2621.5,0.90908032]
[1730902568456,0.4606,2622.4,2622.1,3.81366]
[1730902568661,0.90850086,2622.4,2622.1,3.81366]
[1730902568958,0.4606,2622.4,2622.3,3.81344]
[1730902569120,0.66590863,2622.6,2622.3,3.81344]
[1730902570562,0.66590863,2622.6,2622.3,3.81336]
[1730902570764,0.1274886,2622.6,2622.5,3.81315]
[1730902570923,0.1274886,2622.6,2622.5,4.575793]
[1730902571121,0.1274886,2622.6,2622.5,5.43374645]
[1730902571762,0.1274886,2622.6,2622.5,5.357493]
[1730902572258,0.1274886,2622.6,2622.5,8.357493]
[1730902573259,0.1274886,2622.6,2622.5,5.357493]
[1730902573476,0.1274886,2622.6,2622.5,3.81315]
[1730902574550,0.1274886,2622.6,2622.3,7.62672]
[1730902574729,0.5880886,2622.6,2621.9,3.81393]
[1730902574925,0.07782003,2622.5,2622.0,3.8138]
[1730902575159,3.81333,2622.4,2621.9,3.81397]
[1730902575372,0.07782003,2622.3,2621.9,3.81397]
[1730902576054,3.89127003,2622.3,2621.8,3.81414]
[1730902576562,3.89127003,2622.3,2621.8,7.62823]
[1730902576728,3.89127003,2622.3,2621.8,3.81409]
[1730902576929,4.70650292,2622.3,2621.8,3.81409]
[1730902577159,3.81359,2622.2,2621.6,3.81431]
[1730902577328,0.07782003,2622.1,2621.7,3.81429]
[1730902577952,3.89157003,2622.1,2621.6,3.81431]
[1730902578157,4.27457,2622.0,2621.4,3.81465]
[1730902578338,3.89192003,2621.9,2621.3,3.81489]
[1730902578534,3.81425,2621.8,2621.2,3.87216828]
[1730902578729,0.07782003,2621.7,2621.2,3.87215828]
[1730902578946,4.66276703,2621.7,2621.2,0.05721828]
[1730902579837,3.81448,2621.6,2621.2,0.05721828]
[1730902580155,3.89243003,2621.5,2621.2,0.05721828]
[1730902580341,0.07782003,2621.5,2621.2,0.05721828]
[1730902580549,3.81477,2621.4,2621.2,0.05721828]
[1730902580733,0.07782003,2621.3,2621.2,0.05721828]
[1730902581165,4.28197903,2621.3,2621.2,0.05721828]
[1730902581468,4.74257903,2621.3,2621.2,0.05721828]
[1730902581774,3.81504,2621.2,2620.5,3.81597]
[1730902582074,0.4606,2620.8,2620.3,3.81626]
[1730902582276,0.4606,2620.8,2620.1,4.56894]
[1730902582277,3.81599,2620.6,2620.1,3.81654]
[1730902582575,0.07782003,2620.5,2620.2,3.81642]
[1730902582741,0.07782003,2620.7,2620.1,3.81654]
[1730902582945,3.81622,2620.4,2619.9,3.81683]
[1730902583272,0.07782003,2620.3,2619.9,3.81683]
[1730902583840,0.07782003,2620.5,2620.2,3.81649]
[1730902584138,0.07782003,2620.5,2620.0,3.81671]
[1730902584577,3.89394003,2620.5,2620.0,3.81671]
[1730902584785,0.07782003,2620.5,2619.6,0.07633358]
[1730902584931,0.53842003,2621.1,2620.7,3.81569]
[1730902585136,0.53842003,2621.1,2620.4,4.38056974]
[1730902585137,0.4606,2621.1,2620.8,3.81559]
[1730902585374,3.81533,2621.0,2620.4,0.7862]
[1730902585668,3.89333003,2620.9,2620.4,3.81612]
[1730902585869,3.81579,2620.7,2620.2,3.8164]
[1730902586070,0.07782003,2620.6,2620.2,3.8164]
[1730902586372,0.07782003,2620.7,2620.3,3.81635]
[1730902586574,0.07782003,2620.7,2620.2,3.8164]
[1730902586881,0.07782003,2620.7,2620.4,3.81617]
[1730902587169,0.07782003,2620.9,2620.4,3.81617]
[1730902587468,0.07782003,2620.9,2620.6,3.81584]
[1730902587660,0.07782003,2620.9,2620.4,3.81612]
[1730902587866,3.89337003,2620.9,2620.4,3.81612]
[1730902588200,4.32876703,2620.9,2620.4,3.81612]
[1730902588552,0.51321703,2620.9,2620.4,3.81612]
[1730902589575,0.51321703,2620.9,2620.4,3.81611]
[1730902589777,0.51321703,2620.9,2620.5,3.81604]
[1730902589978,0.07782003,2620.9,2620.5,3.81604]
[1730902590288,3.89318003,2621.0,2620.4,3.81611]
[1730902590891,0.07782003,2621.0,2620.4,3.81611]
[1730902591184,0.07782003,2621.2,2620.9,3.81548]
[1730902591397,0.4606,2621.4,2620.9,3.81539]
[1730902591692,0.4606,2621.4,2621.1,3.81517]
[1730902591693,0.53842003,2621.4,2621.1,3.81517]
[1730902592596,0.53842003,2621.4,2621.1,3.81509]
[1730902592750,0.07782003,2621.6,2621.3,3.8149]
[1730902592950,0.07782003,2621.6,2620.7,0.7841]
[1730902592951,3.81499,2621.3,2620.7,3.81576]
[1730902593156,4.27589,2621.1,2620.5,7.63197]
[1730902593391,3.89317003,2621.0,2620.5,3.81598]
[1730902594093,3.89317003,2621.0,2620.5,7.63196]
[1730902594297,3.89317003,2621.0,2620.5,3.81598]
[1730902594467,4.71006203,2621.0,2620.5,3.81598]
[1730902594788,0.89471203,2621.0,2620.5,3.81598]
[1730902594957,0.07782003,2621.0,2620.7,3.81575]
[1730902595151,0.07782003,2621.0,2620.7,7.63144]
[1730902595374,0.07782003,2621.0,2620.7,3.81569]
[1730902595708,0.07782003,2621.0,2620.8,3.81555]
[1730902595908,0.4606,2621.1,2620.8,3.81555]
[1730902596122,0.07782003,2621.0,2620.8,3.81555]
[1730902596264,0.07782003,2621.0,2620.7,3.81569]
[1730902596464,3.89326003,2621.0,2620.4,3.81613]
[1730902596668,0.07782003,2621.0,2620.5,3.81599]
[1730902596919,0.07782003,2621.0,2620.6,3.81584]
[1730902597134,0.51318803,2621.0,2620.5,3.81599]
[1730902597282,3.81549,2620.9,2620.3,3.81625]
[1730902597619,0.07782003,2620.8,2620.4,3.81614]
[1730902598486,3.81577,2620.7,2620.3,3.81625]
[1730902598807,0.51068783,2620.8,2620.3,3.81625]
[1730902599020,0.07782003,2620.8,2620.5,3.81605]
[1730902599310,0.07782003,2620.8,2620.3,3.81625]
[1730902599311,3.89356003,2620.8,2620.3,3.76264651]
[1730902599809,0.07782003,2620.8,2620.4,3.81614]
[1730902601379,0.07782003,2620.8,2620.3,3.76264651]
[1730902601380,3.89345003,2620.8,2620.3,3.76264651]
[1730902601581,3.81577,2620.7,2620.3,3.76264651]
[1730902601790,0.89225083,2620.8,2620.4,3.81618]
[1730902602813,3.89345003,2620.8,2620.4,3.81618]
[1730902603225,3.89345003,2620.8,2620.1,4.60133]
[1730902603397,3.89345003,2620.8,2620.3,3.81634]
[1730902603935,0.07782003,2620.8,2620.1,4.60133]
[1730902604109,3.81606,2620.5,2619.6,4.61914]
[1730902604311,3.89411003,2620.4,2619.9,3.81686]
[1730902604518,0.07782003,2620.5,2620.2,3.8164]
[1730902604706,0.4606,2620.6,2620.3,3.81627]
[1730902605036,0.4606,2620.9,2620.4,3.81614]
[1730902605250,0.07782003,2621.2,2620.7,3.81577]
[1730902605402,0.4606,2621.3,2620.9,3.81543]
[1730902605594,4.27551,2621.3,2620.9,3.81543]
[1730902605942,3.81529,2621.1,2620.6,4.59201]
[1730902606146,0.07782003,2621.0,2620.4,0.803]
[1730902606313,7.63112,2620.9,2620.4,3.81618]
[1730902606500,3.89352003,2620.8,2620.3,3.81634]
[1730902606696,0.770894,2620.9,2620.2,0.07631933]
[1730902606897,0.07782003,2621.0,2620.6,3.81578]
[1730902607239,3.81512,2621.2,2620.4,0.8143]
[1730902607540,3.89294003,2621.2,2620.7,3.81576]
[1730902607697,3.81521,2621.1,2620.7,3.81576]
[1730902608201,3.89319003,2621.0,2620.4,0.8143]
[1730902608510,0.4606,2620.8,2620.3,3.81635]
[1730902608838,0.4606,2620.8,2620.5,3.81599]
[1730902608998,0.4606,2620.8,2620.4,3.8162]
[1730902609401,4.27624,2620.8,2620.3,3.81628]
[1730902609715,0.4606,2620.8,2620.4,3.81618]
[1730902610505,0.4606,2620.8,2620.5,3.81599]
[1730902610841,0.4606,2620.8,2620.4,3.81618]
[1730902612596,0.4606,2620.8,2620.5,3.81605]
[1730902612801,0.4606,2620.8,2620.3,0.07631932]
[1730902612802,0.4606,2620.8,2620.4,3.81619]
[1730902612995,4.27623,2620.8,2620.3,3.89265932]
[1730902613511,4.27623,2620.8,2620.4,3.81616]
[1730902614443,0.4606,2620.8,2620.4,3.81616]
[1730902615238,4.27632,2620.8,2620.3,3.89265932]
[1730902615914,3.81581,2620.7,2620.3,3.89265932]
[1730902616116,4.27632,2620.8,2620.3,3.89258932]
[1730902616337,0.4606,2620.8,2620.4,3.81612]
[1730902616954,4.27623,2620.8,2620.3,3.89258932]
[1730902617149,3.89366003,2620.7,2620.3,3.81627]
[1730902617341,0.07782003,2620.7,2620.3,3.81627]
[1730902617720,8.09194,2620.8,2620.3,3.81627]
[1730902618028,0.4606,2620.4,2619.6,0.7557]
[1730902618274,3.81656,2620.2,2619.7,3.81714]
[1730902618623,3.81656,2620.2,2619.8,3.81706]
[1730902619021,4.27691,2620.4,2620.0,3.81671]
[1730902619362,4.27681,2620.4,2619.9,3.81684]
[1730902620050,4.27682,2620.4,2619.9,3.81684]
[1730902620356,3.81637,2620.3,2619.9,3.81684]
[1730902620557,3.81651,2620.2,2619.7,3.81712]
[1730902620764,7.63311,2620.2,2619.7,3.81712]
[1730902621073,0.4606,2620.0,2619.5,3.81742]
[1730902621281,3.89483003,2619.9,2619.3,3.8178]
[1730902621564,0.4606,2619.5,2619.0,3.81824]
[1730902621757,0.4606,2619.5,2618.9,4.59559]
[1730902621758,4.35594003,2619.5,2618.9,4.59559]
[1730902621977,4.35594003,2619.5,2618.9,5.055149]
[1730902622242,0.53842003,2619.5,2618.9,5.055149]
[1730902622437,3.89551003,2619.4,2618.9,5.055149]
[1730902622620,0.07782003,2619.4,2619.1,3.8181]
[1730902622827,0.4606,2619.5,2619.1,3.8181]
[1730902623147,4.35594003,2619.5,2618.9,8.873429]
[1730902623437,3.81775,2619.4,2618.9,3.81825]
[1730902623620,3.89572003,2619.3,2618.7,3.81858]
[1730902623825,3.89572003,2619.3,2618.6,0.7721]
[1730902623826,0.53842003,2619.5,2618.9,3.81839]
[1730902624028,0.53842003,2619.5,2619.0,3.81817]
[1730902624193,0.4606,2619.8,2619.3,3.81771]
[1730902624397,0.07782003,2619.7,2619.3,3.81771]
[1730902624648,0.07782003,2619.7,2619.3,7.63544]
[1730902624839,0.07782003,2619.7,2619.1,4.59009]
[1730902625141,0.07782003,2619.7,2619.3,3.81777]
[1730902625639,0.07782003,2619.7,2619.1,3.81799]
[1730902625939,3.8174,2619.6,2619.1,3.81799]
[1730902626153,3.81767,2619.4,2618.9,3.81829]
[1730902626432,0.53842003,2619.3,2618.9,3.81829]
[1730902626637,3.81803,2619.2,2618.7,3.81858]
[1730902626939,0.07782003,2619.1,2618.7,3.81858]
[1730902627099,3.89603003,2619.1,2618.5,3.81891]
[1730902627301,3.81833,2619.0,2618.5,3.81891]
[1730902627495,0.07782003,2618.9,2618.5,3.81891]
[1730902627805,4.27844,2619.3,2618.8,3.81846]
[1730902628007,0.07782003,2619.2,2618.8,7.63689]
[1730902628317,0.07782003,2619.2,2618.6,3.8187]
[1730902628528,4.33140603,2619.2,2618.7,3.81865]
[1730902628842,3.81817,2619.1,2618.6,3.8187]
[1730902629135,3.81817,2619.1,2618.4,3.81905]
[1730902629136,4.35677003,2619.0,2618.5,3.81897]
[1730902629502,3.81839,2618.9,2618.4,3.81904]
[1730902629704,0.07782003,2618.8,2618.5,3.81898]
[1730902629940,0.07782003,2618.9,2618.5,3.81898]
[1730902631302,0.07782003,2618.9,2618.5,3.81891]
[1730902631620,0.07782003,2618.9,2618.6,3.81881]
[1730902632433,3.8188,2618.7,2618.2,0.0572855]
[1730902632634,3.89667003,2618.6,2618.2,0.0572855]
[1730902632838,7.71558003,2618.6,2618.2,0.0572855]
[1730902633045,3.89667003,2618.6,2618.2,0.0572855]
[1730902633739,3.89667003,2618.6,2618.1,3.81945]
[1730902634942,0.4606,2618.5,2618.1,3.81945]
[1730902635100,0.53842003,2618.5,2618.3,3.81919]
[1730902635300,3.8183,2619.0,2618.4,3.81903]
[1730902635301,0.07782003,2618.8,2618.4,3.81903]
[1730902636212,0.07782003,2619.0,2618.6,3.81881]
[1730902636617,0.07782003,2619.0,2618.7,3.81867]
[1730902637320,4.27871,2619.1,2618.7,3.81867]
[1730902637321,0.4606,2619.1,2618.9,3.81837]
[1730902637499,0.07782003,2619.2,2619.1,3.81801]
[1730902637706,0.07782003,2619.3,2619.2,3.81795]
[1730902637906,0.4606,2619.4,2619.2,3.81795]
[1730902638102,0.4606,2619.4,2619.2,7.63583]
[1730902638355,0.4606,2619.4,2619.2,3.81788]
[1730902638908,0.4606,2619.4,2619.0,3.81814]
[1730902639140,0.4606,2619.4,2619.1,3.818]
[1730902639141,0.53842003,2619.4,2619.1,3.818]
[1730902639304,0.4606,2619.4,2619.1,3.818]
[1730902639505,0.53842003,2619.4,2619.0,3.81814]
[1730902639806,0.53842003,2619.4,2619.1,3.81799]
[1730902640030,0.53842003,2619.4,2619.0,3.81814]
[1730902640206,0.4606,2619.4,2619.2,3.81795]
[1730902640728,0.4606,2619.4,2619.0,4.199934]
[1730902640940,0.4606,2619.4,2619.1,3.81797]
[1730902642446,3.81788,2619.3,2618.8,3.81854]
[1730902642757,0.07782003,2619.2,2618.8,3.81854]
[1730902643317,3.89577003,2619.2,2618.8,3.81854]
[1730902643614,0.07782003,2619.2,2618.8,3.81854]
[1730902643813,0.07782003,2619.3,2618.7,0.07636896]
[1730902644050,0.4606,2619.4,2619.3,3.81781]
[1730902644357,0.07782003,2619.6,2619.4,3.8176]
[1730902644512,0.07782003,2619.6,2619.5,3.81752]
[1730902644720,0.4606,2619.9,2619.7,3.81723]
[1730902645058,0.07782003,2620.1,2619.7,7.63426]
[1730902645228,0.07782003,2620.1,2619.8,3.81707]
[1730902645436,0.07782003,2620.1,2619.7,3.81711]
[1730902645628,0.07782003,2620.1,2619.8,3.81706]
[1730902645833,0.07782003,2620.1,2619.4,3.81755]
[1730902646046,3.8168,2620.0,2619.5,3.81751]
[1730902646220,0.07782003,2619.9,2619.5,3.81751]
[1730902646763,3.81748,2619.6,2619.1,3.8181]
[1730902647084,3.81748,2619.6,2618.3,4.57854]
[1730902647085,3.81832,2619.0,2618.3,4.57854]
[1730902647231,0.07782003,2618.9,2618.5,3.81896]
[1730902647430,0.4606,2618.8,2618.5,3.81896]
[1730902647729,0.4606,2618.8,2618.5,7.63792]
[1730902647943,0.4606,2618.8,2618.5,3.81887]
[1730902648118,0.4606,2618.8,2618.3,4.57846]
[1730902648339,0.4606,2618.8,2618.5,3.81897]
[1730902648539,0.4606,2618.8,2618.2,3.8194]
[1730902648540,3.89652003,2618.7,2618.2,3.8194]
[1730902648764,0.07782003,2618.7,2618.2,3.81933]